[Event "Kwalificatie NJK B Groningen"]
[Site "Hoogkerk, Netherlands"]
[Date "2023.02.18"]
[Round "3.6"]
[White "Krylov, Philippe"]
[Black "Chua, Ethan"]
[Result "1-0"]
[TimeControl "55 min. + 10 sec./zet"]
[WhiteElo "1862"]
[BlackElo "1718"]

1. d4 {[%clk 00:55:18]} {[%emt 00:00:05]} Nf6 {[%clk 00:55:13]} {[%emt
00:00:06]} 2. c4 {[%clk 00:55:23]} {[%emt 00:00:05]} e6 {[%clk 00:55:12]}
{[%emt 00:00:10]} 3. Nc3 {[%clk 00:55:29]} {[%emt 00:00:05]} Bb4 {[%clk
00:55:19]} {[%emt 00:00:05]} 4. e3 {[%emt 00:00:13]} O-O {[%clk 00:55:18]} 5.
Nge2 {[%clk 00:55:43]} b6 {[%clk 00:55:04]} {[%emt 00:00:38]} 6. a3 {[%clk
00:55:12]} {[%emt 00:00:32]} Bxc3+ {[%clk 00:55:06]} {[%emt 00:00:11]} 7. Nxc3
Bb7 {[%clk 00:55:13]} 8. Bd3 {[%clk 00:40:33]} {[%emt 00:15:06]} d5 {[%clk
00:53:29]} {[%emt 00:01:42]} 9. cxd5 {[%clk 00:39:25]} {[%emt 00:01:19]} exd5
{[%clk 00:53:12]} {[%emt 00:01:16]} 10. b4 {[%clk 00:39:09]} Re8 {[%clk
00:52:55]} {[%emt 00:00:11]} 11. O-O {[%clk 00:38:36]} {[%emt 00:00:42]} Nbd7
{[%clk 00:51:25]} {[%emt 00:01:33]} 12. Bb2 {[%clk 00:36:23]} {[%emt 00:02:23]}
a6 {[%clk 00:50:58]} {[%emt 00:00:42]} 13. Rc1 {[%clk 00:33:44]} {[%emt
00:02:44]} Rc8 {[%clk 00:49:24]} {[%emt 00:02:20]} 14. Na4 {[%clk 00:27:42]}
{[%emt 00:05:40]} Qe7 {[%clk 00:42:31]} {[%emt 00:07:02]} 15. Qe2 {[%clk
00:26:46]} {[%emt 00:01:11]} b5 {[%clk 00:39:29]} {[%emt 00:03:08]} 16. Nc5
{[%clk 00:26:34]} {[%emt 00:00:19]} Nxc5 {[%clk 00:39:32]} {[%emt 00:00:19]} 17.
dxc5 {[%clk 00:22:45]} {[%emt 00:03:47]} c6 {[%clk 00:38:40]} {[%emt 00:01:11]}
18. Bd4 {[%clk 00:21:22]} {[%emt 00:01:28]} Rcd8 {[%clk 00:38:27]} {[%emt
00:00:19]} 19. Qb2 {[%clk 00:19:44]} {[%emt 00:01:52]} Bc8 {[%clk 00:37:13]}
{[%emt 00:01:20]} 20. h3 {[%clk 00:16:07]} {[%emt 00:03:46]} h6 {[%clk
00:32:14]} {[%emt 00:05:14]} 21. Rcd1 {[%clk 00:14:51]} {[%emt 00:01:24]} Nh5
{[%clk 00:29:15]} {[%emt 00:03:13]} 22. Be2 {[%clk 00:13:47]} {[%emt 00:01:10]}
Nf4 {[%clk 00:26:16]} {[%emt 00:03:06]} 23. Bf3 {[%clk 00:12:21]} {[%emt
00:01:39]} Ne6 {[%clk 00:24:39]} {[%emt 00:01:49]} 24. Rfe1 {[%clk 00:11:27]}
{[%emt 00:01:27]} Qh4 {[%clk 00:21:37]} {[%emt 00:02:44]} 25. Bg4 {[%clk
00:08:14]} {[%emt 00:03:24]} Nxd4 {[%clk 00:16:54]} {[%emt 00:08:50]} 26. Rxd4
{[%clk 00:08:14]} Qf6 {[%clk 00:13:01]} {[%emt 00:00:24]} 27. Bxc8 {[%clk
00:08:06]} {[%emt 00:00:10]} Rxc8 {[%clk 00:13:03]} {[%emt 00:00:11]} 28. Qd2
{[%clk 00:07:42]} {[%emt 00:00:33]} Rcd8 {[%clk 00:12:21]} {[%emt 00:00:49]} 29.
e4 {[%clk 00:03:57]} {[%emt 00:03:55]} dxe4 {[%clk 00:11:45]} {[%emt 00:00:46]}
30. Rexe4 {[%clk 00:04:02]} {[%emt 00:00:21]} Rxe4 {[%clk 00:10:41]} {[%emt
00:01:03]} 31. Rxd8+ {[%clk 00:04:10]} Kh7 {[%clk 00:10:41]} {[%emt 00:00:24]}
32. Rd6 {[%clk 00:03:19]} {[%emt 00:01:14]} Qe5 {[%clk 00:10:16]} {[%emt
00:00:04]} 33. Qd3 {[%clk 00:02:11]} {[%emt 00:01:18]} g6 {[%clk 00:10:13]}
{[%emt 00:00:40]} 34. g3 {[%clk 00:02:14]} Re1+ {[%clk 00:10:06]} 35. Kg2
{[%clk 00:02:18]} {[%emt 00:00:08]} Ra1 {[%clk 00:07:04]} {[%emt 00:03:09]} 36.
Qf3 {[%clk 00:01:28]} {[%emt 00:01:00]} Kg7 {[%clk 00:06:06]} {[%emt 00:01:14]}
37. Rxc6 {[%clk 00:01:20]} {[%emt 00:00:11]} Re1 {[%clk 00:04:17]} {[%emt
00:02:12]} 38. Rxa6 {[%clk 00:01:15]} {[%emt 00:00:08]} Qa1 {[%clk 00:04:12]}
{[%emt 00:00:09]} 39. Ra7 {[%clk 00:00:39]} {[%emt 00:00:47]} Qa2 {[%clk
00:02:57]} {[%emt 00:01:43]} 40. Qc3+ {[%clk 00:00:47]} Kh7 {[%clk 00:02:55]}
41. Qxe1 {[%clk 00:00:53]} Qd5+ {[%clk 00:02:52]} {[%emt 00:00:12]} 42. Kg1
{[%clk 00:01:01]} {[%emt 00:00:14]} h5 {[%clk 00:02:48]} {[%emt 00:00:05]} 43.
Qe2 {[%clk 00:00:25]} {[%emt 00:00:48]} Qf5 {[%clk 00:01:59]} {[%emt 00:00:54]}
44. Kg2 {[%clk 00:00:29]} {[%emt 00:00:06]} Kg7 {[%clk 00:01:53]} {[%emt
00:00:15]} 45. Qf3 {[%clk 00:00:38]} Qe6 {[%clk 00:01:55]} {[%emt 00:00:14]} 46.
h4 {[%clk 00:00:43]} {[%emt 00:00:05]} Qc4 {[%clk 00:01:53]} {[%emt 00:00:13]}
47. Ra6 {[%clk 00:00:37]} {[%emt 00:00:11]} Qd4 {[%clk 00:01:54]} {[%emt
00:00:10]} 48. Rd6 {[%clk 00:00:35]} {[%emt 00:00:19]} Qe5 {[%clk 00:01:20]}
{[%emt 00:00:36]} 49. Rd7 {[%clk 00:00:37]} {[%emt 00:00:08]} Qe6 {[%clk
00:01:00]} {[%emt 00:00:41]} 50. Qd5 {[%emt 00:00:16]} Qe8 {[%clk 00:00:59]} 51.
c6 {[%clk 00:00:54]} g5 {[%clk 00:00:36]} {[%emt 00:00:21]} 52. c7 {[%clk
00:00:58]} {[%emt 00:00:09]} gxh4 {[%clk 00:00:39]} {[%emt 00:00:06]} 53. Qxf7+
{[%clk 00:01:05]} {[%emt 00:00:05]} 1-0

[Event "Kwalificatie NJK B Groningen"]
[Site "Hoogkerk, Netherlands"]
[Date "2023.02.18"]
[Round "3.7"]
[White "Niemeijer, LÃ©on"]
[Black "Roorda, Cas"]
[Result "1/2-1/2"]
[TimeControl "55 min. + 10 sec./zet"]
[WhiteElo "1860"]
[BlackElo "1654"]

1. d4 {[%clk 00:52:12]} Nf6 {[%clk 00:55:13]} {[%emt 00:00:04]} 2. c4 {[%clk
00:52:20]} {[%emt 00:00:37]} e6 {[%clk 00:55:15]} 3. g3 {[%clk 00:52:25]} d5
{[%clk 00:54:52]} {[%emt 00:00:18]} 4. Bg2 {[%clk 00:52:29]} {[%emt 00:00:04]}
Be7 {[%clk 00:53:18]} {[%emt 00:02:11]} 5. Nf3 {[%clk 00:50:44]} {[%emt
00:01:23]} O-O {[%clk 00:53:18]} {[%emt 00:00:13]} 6. O-O {[%clk 00:50:50]}
{[%emt 00:00:10]} dxc4 {[%clk 00:52:27]} {[%emt 00:00:54]} 7. Ne5 {[%clk
00:50:50]} {[%emt 00:00:10]} Nbd7 {[%clk 00:44:29]} {[%emt 00:08:06]} 8. Nxc4
{[%clk 00:50:47]} {[%emt 00:01:10]} Nb6 {[%clk 00:38:24]} {[%emt 00:05:18]} 9.
Nxb6 {[%clk 00:49:30]} {[%emt 00:01:27]} axb6 {[%clk 00:38:10]} {[%emt
00:00:45]} 10. Nc3 {[%clk 00:49:30]} c5 {[%clk 00:33:12]} {[%emt 00:05:36]} 11.
d5 {[%clk 00:49:03]} exd5 {[%clk 00:32:59]} {[%emt 00:00:20]} 12. Nxd5 {[%clk
00:49:07]} {[%emt 00:00:32]} Nxd5 {[%clk 00:32:39]} {[%emt 00:00:13]} 13. Qxd5
{[%clk 00:49:10]} {[%emt 00:00:04]} Qxd5 {[%clk 00:31:46]} {[%emt 00:00:57]} 14.
Bxd5 {[%clk 00:49:17]} {[%emt 00:00:15]} Rd8 {[%clk 00:31:05]} {[%emt
00:00:44]} 15. e4 {[%clk 00:49:03]} {[%emt 00:01:21]} Bf6 {[%clk 00:28:39]}
{[%emt 00:06:12]} 16. Rb1 {[%clk 00:37:19]} {[%emt 00:08:40]} Be6 {[%clk
00:19:10]} {[%emt 00:08:39]} 17. Bxe6 {[%clk 00:37:18]} fxe6 {[%clk 00:19:17]}
{[%emt 00:00:24]} 18. a3 {[%clk 00:37:06]} Bd4 {[%clk 00:18:17]} {[%emt
00:01:13]} 19. Re1 {[%clk 00:34:52]} {[%emt 00:02:33]} Rf8 {[%clk 00:17:41]}
{[%emt 00:01:13]} 20. Be3 {[%clk 00:34:47]} Ra4 {[%clk 00:13:59]} {[%emt
00:04:49]} 21. Bxd4 {[%clk 00:33:31]} Rxd4 {[%clk 00:13:23]} {[%emt 00:00:43]}
22. Rbd1 {[%clk 00:33:22]} {[%emt 00:00:16]} Rfd8 {[%clk 00:12:40]} {[%emt
00:00:53]} 23. Rxd4 {[%clk 00:33:17]} {[%emt 00:01:59]} Rxd4 {[%clk 00:12:34]}
24. Re2 {[%clk 00:33:17]} g5 {[%clk 00:10:25]} {[%emt 00:01:29]} 25. f3 {[%clk
00:32:49]} {[%emt 00:00:43]} e5 {[%clk 00:10:02]} {[%emt 00:00:09]} 26. Kf2
{[%clk 00:32:17]} {[%emt 00:00:33]} Rd3 {[%clk 00:09:41]} {[%emt 00:01:03]} 27.
Kg2 {[%clk 00:24:43]} {[%emt 00:07:47]} Kf7 {[%clk 00:09:40]} 28. Rf2 {[%clk
00:24:33]} {[%emt 00:00:09]} Ke6 {[%clk 00:08:09]} {[%emt 00:01:28]} 29. Kh3
{[%clk 00:23:06]} {[%emt 00:01:50]} h5 {[%clk 00:07:55]} {[%emt 00:00:11]} 30.
Kg2 {[%clk 00:22:59]} {[%emt 00:00:30]} b5 {[%clk 00:07:16]} {[%emt 00:00:42]}
31. Kf1 {[%clk 00:20:45]} {[%emt 00:03:27]} Re3 {[%clk 00:07:01]} 32. Kg2
{[%clk 00:18:32]} {[%emt 00:02:22]} g4 {[%clk 00:07:05]} 33. fxg4 {[%clk
00:16:58]} {[%emt 00:01:10]} hxg4 {[%clk 00:07:14]} {[%emt 00:00:30]} 34. h4
{[%clk 00:17:05]} Rxe4 {[%clk 00:06:48]} {[%emt 00:00:51]} 35. h5 {[%clk
00:11:31]} {[%emt 00:05:26]} Rd4 {[%clk 00:06:12]} {[%emt 00:00:20]} 36. Rf8
{[%clk 00:11:17]} {[%emt 00:00:23]} Rd7 {[%clk 00:06:15]} {[%emt 00:00:32]} 37.
Rh8 {[%clk 00:10:27]} {[%emt 00:01:18]} Kf6 {[%clk 00:06:10]} 38. h6 {[%clk
00:10:26]} Re7 {[%clk 00:04:10]} {[%emt 00:02:34]} 39. Rc8 {[%emt 00:01:04]}
1/2-1/2

[Event "Kwalificatie NJK B Groningen"]
[Site "Hoogkerk, Netherlands"]
[Date "2023.02.18"]
[Round "3.8"]
[White "Sapulette, Jay-Giani"]
[Black "Gergin, Isafara"]
[Result "1/2-1/2"]
[TimeControl "55 min. + 10 sec./zet"]
[WhiteElo "1489"]
[BlackElo "1688"]

1. e4 {[%clk 00:55:18]} {[%emt 00:00:53]} c5 {[%clk 00:55:15]} 2. Nf3 {[%clk
00:55:27]} Nc6 {[%clk 00:55:20]} 3. d4 {[%clk 00:55:35]} cxd4 {[%clk 00:55:23]}
4. Nxd4 {[%clk 00:55:43]} Nf6 {[%clk 00:55:25]} 5. Nc3 {[%clk 00:55:52]} e5
{[%clk 00:55:28]} 6. Ndb5 {[%clk 00:56:00]} d6 {[%clk 00:55:30]} 7. Bg5 {[%clk
00:55:56]} a6 {[%clk 00:55:34]} 8. Na3 {[%clk 00:56:02]} b5 {[%clk 00:55:39]} 9.
Nd5 {[%clk 00:56:01]} {[%emt 00:00:04]} Be7 {[%clk 00:55:38]} {[%emt 00:00:05]}
10. Bxf6 {[%clk 00:55:55]} Bxf6 {[%clk 00:55:41]} {[%emt 00:00:05]} 11. c4
{[%clk 00:56:03]} {[%emt 00:00:09]} b4 {[%clk 00:55:34]} {[%emt 00:00:37]} 12.
Nc2 {[%clk 00:56:10]} a5 {[%clk 00:55:37]} 13. Bd3 {[%clk 00:55:40]} {[%emt
00:00:59]} O-O {[%clk 00:55:26]} {[%emt 00:00:10]} 14. O-O {[%clk 00:54:46]}
{[%emt 00:01:28]} Bg5 {[%clk 00:54:34]} {[%emt 00:00:40]} 15. Qe2 {[%clk
00:52:37]} {[%emt 00:01:51]} Be6 {[%clk 00:52:34]} {[%emt 00:02:10]} 16. g3
{[%clk 00:50:15]} {[%emt 00:02:34]} Ne7 {[%clk 00:46:43]} {[%emt 00:05:57]} 17.
Nce3 {[%clk 00:46:43]} {[%emt 00:04:10]} Bxe3 {[%clk 00:40:30]} {[%emt
00:07:11]} 18. Qxe3 {[%clk 00:46:35]} Nxd5 {[%clk 00:38:49]} {[%emt 00:01:45]}
19. cxd5 {[%clk 00:46:36]} Bh3 {[%clk 00:36:39]} {[%emt 00:03:15]} 20. Rfc1
{[%clk 00:45:48]} Qd7 {[%clk 00:33:27]} {[%emt 00:03:13]} 21. Rc6 {[%clk
00:43:24]} {[%emt 00:02:03]} Rac8 {[%clk 00:28:10]} {[%emt 00:05:46]} 22. Qb6
{[%clk 00:42:50]} {[%emt 00:00:56]} Qg4 {[%clk 00:20:24]} {[%emt 00:07:25]} 23.
Bf1 {[%clk 00:41:47]} {[%emt 00:02:16]} Bxf1 {[%clk 00:20:02]} 24. Rxf1 {[%clk
00:41:28]} Qxe4 {[%clk 00:19:02]} {[%emt 00:01:48]} 25. Rxd6 {[%clk 00:41:20]}
a4 {[%clk 00:15:23]} {[%emt 00:04:13]} 26. Qb5 {[%clk 00:38:47]} {[%emt
00:02:26]} a3 {[%clk 00:11:42]} {[%emt 00:03:24]} 27. bxa3 {[%clk 00:38:01]}
{[%emt 00:01:43]} bxa3 {[%clk 00:11:45]} 28. Rb1 {[%clk 00:35:36]} {[%emt
00:01:52]} Rc2 {[%clk 00:07:22]} {[%emt 00:05:17]} 29. Qb3 {[%clk 00:33:45]}
{[%emt 00:01:18]} Rfc8 {[%clk 00:03:06]} {[%emt 00:05:19]} 30. Rc6 {[%clk
00:31:51]} {[%emt 00:01:59]} R2xc6 {[%clk 00:02:13]} {[%emt 00:01:40]} 31. dxc6
{[%clk 00:31:54]} Qxc6 {[%clk 00:02:19]} 32. Qxa3 {[%clk 00:31:59]} g6 {[%clk
00:01:57]} 33. Qb2 {[%clk 00:31:52]} Qd5 {[%clk 00:01:35]} {[%emt 00:00:12]} 34.
a4 {[%clk 00:31:19]} {[%emt 00:00:43]} Ra8 {[%clk 00:01:17]} {[%emt 00:00:28]}
35. Qc2 {[%clk 00:30:46]} {[%emt 00:00:43]} Qd4 {[%clk 00:01:02]} {[%emt
00:00:50]} 36. Re1 {[%clk 00:30:07]} {[%emt 00:00:25]} Rxa4 {[%clk 00:00:56]}
{[%emt 00:00:17]} 37. Qb1 {[%clk 00:29:13]} {[%emt 00:01:07]} Rb4 {[%clk
00:00:53]} {[%emt 00:00:45]} 38. Qa2 {[%clk 00:28:28]} {[%emt 00:01:05]} Rb2
{[%clk 00:00:40]} 39. Qa8+ {[%clk 00:28:03]} {[%emt 00:00:18]} Kg7 {[%clk
00:00:47]} 40. Qf3 {[%clk 00:27:49]} {[%emt 00:00:22]} f5 {[%clk 00:00:28]}
{[%emt 00:01:36]} 41. h4 {[%clk 00:27:10]} e4 {[%clk 00:00:25]} 42. Qf4 {[%clk
00:27:10]} {[%emt 00:00:09]} Qd2 {[%clk 00:00:22]} {[%emt 00:00:09]} 43. Qc7+
{[%clk 00:26:53]} {[%emt 00:00:37]} Kh6 {[%clk 00:00:22]} 44. Rf1 {[%clk
00:26:21]} {[%emt 00:00:42]} Rc2 {[%clk 00:00:16]} {[%emt 00:00:59]} 45. Qe7
{[%clk 00:26:17]} e3 {[%clk 00:00:15]} 46. Qg5+ {[%clk 00:25:59]} {[%emt
00:00:10]} Kg7 {[%clk 00:00:24]} {[%emt 00:00:08]} 47. Qe7+ {[%clk 00:25:57]}
{[%emt 00:00:09]} Kg8 {[%clk 00:00:31]} 48. Qe8+ {[%clk 00:25:53]} {[%emt
00:00:19]} Kg7 {[%clk 00:00:24]} {[%emt 00:00:13]} 49. Qe7+ {[%clk 00:25:34]}
{[%emt 00:00:50]} Kg8 {[%clk 00:00:18]} 1/2-1/2

[Event "Kwalificatie NJK B Groningen"]
[Site "Hoogkerk, Netherlands"]
[Date "2023.02.18"]
[Round "3.9"]
[White "Van Hesselingen, Guido"]
[Black "Westerhof, Fleur"]
[Result "1-0"]
[TimeControl "55 min. + 10 sec./zet"]
[WhiteElo "1908"]
[BlackElo "1623"]

1. e4 {[%emt 00:25:09]} e5 2. Nf3 Nc6 3. Bc4 Bc5 {[%emt 00:00:06]} 4. O-O
{[%emt 00:01:26]} Nf6 5. d3 d6 {[%emt 00:01:38]} 6. Bg5 {[%emt 00:01:46]} h6
{[%emt 00:01:02]} 7. Bh4 {[%emt 00:01:41]} a6 {[%emt 00:05:07]} 8. c3 {[%emt
00:00:15]} g5 {[%emt 00:04:02]} 9. Bg3 {[%emt 00:00:12]} Bg4 {[%emt 00:00:36]}
10. Nbd2 {[%emt 00:01:35]} Qd7 {[%emt 00:02:09]} 11. Re1 {[%emt 00:10:12]} Na5
{[%emt 00:03:26]} 12. d4 {[%emt 00:03:06]} Ba7 {[%emt 00:04:33]} 13. dxe5
{[%emt 00:02:11]} Nh5 {[%emt 00:02:08]} 14. exd6 {[%emt 00:01:51]} cxd6 {[%emt
00:01:52]} 15. Bd5 {[%emt 00:02:59]} O-O-O {[%emt 00:02:20]} 16. a4 {[%emt
00:03:28]} Nxg3 {[%emt 00:02:23]} 17. hxg3 {[%emt 00:01:00]} Nc6 {[%emt
00:00:19]} 18. b4 {[%emt 00:02:25]} Ne5 19. Nxe5 {[%emt 00:01:22]} dxe5 20. Qb3
{[%emt 00:01:41]} Qd6 {[%emt 00:08:02]} 21. Nc4 {[%emt 00:02:57]} Qf6 {[%emt
00:01:49]} 22. Ne3 {[%emt 00:00:22]} Bh5 {[%emt 00:02:17]} 23. a5 {[%emt
00:01:54]} Rhf8 {[%emt 00:01:45]} 24. b5 {[%emt 00:01:17]} axb5 {[%emt
00:01:14]} 25. Qxb5 {[%emt 00:01:27]} Qa6 26. c4 {[%emt 00:01:11]} Bd4 27. Rab1
{[%emt 00:01:53]} Rd7 {[%emt 00:00:24]} 1-0

[Event "Kwalificatie NJK B Groningen"]
[Site "Hoogkerk, Netherlands"]
[Date "2023.02.18"]
[Round "4.1"]
[White "Snijders, Take"]
[Black "Terlouw, Wouter"]
[Result "0-1"]
[TimeControl "55 min. + 10 sec./zet"]
[WhiteElo "1848"]
[BlackElo "1925"]

1. e4 {[%clk 00:55:18]} c5 {[%clk 00:55:18]} 2. Nf3 {[%clk 00:55:18]} Nc6
{[%clk 00:55:18]} 3. d4 {[%clk 00:55:18]} cxd4 {[%clk 00:55:18]} 4. Nxd4 {[%clk
00:55:18]} e5 {[%clk 00:55:18]} 5. Nb5 {[%clk 00:55:18]} d6 {[%clk 00:55:18]} 6.
N1c3 {[%clk 00:55:18]} Nf6 {[%clk 00:55:18]} 7. Nd5 {[%clk 00:55:18]} Nxd5
{[%clk 00:55:18]} 8. exd5 {[%clk 00:55:18]} Nb8 {[%clk 00:55:18]} 9. c4 {[%clk
00:55:18]} Be7 {[%clk 00:55:18]} 10. Be2 {[%clk 00:55:18]} O-O {[%clk
00:55:18]} 11. O-O {[%clk 00:55:18]} a6 {[%clk 00:55:18]} 12. Nc3 {[%clk
00:55:18]} f5 {[%clk 00:55:18]} 13. b4 {[%clk 00:55:18]} Qb6 {[%clk 00:54:19]}
{[%emt 00:18:02]} 14. Qb3 {[%clk 00:50:39]} f4 {[%clk 00:52:47]} {[%emt
00:03:00]} 15. Ba3 {[%clk 00:46:46]} Bf5 {[%clk 00:51:51]} {[%emt 00:06:14]} 16.
Na4 {[%clk 00:44:42]} Qc7 {[%clk 00:49:04]} {[%emt 00:04:06]} 17. c5 {[%clk
00:44:26]} {[%emt 00:00:27]} Nd7 {[%clk 00:48:46]} 18. Rac1 {[%clk 00:41:59]}
{[%emt 00:03:23]} Kh8 {[%clk 00:48:39]} 19. Rc3 {[%clk 00:39:00]} {[%emt
00:02:46]} e4 {[%clk 00:46:41]} {[%emt 00:02:47]} 20. Rfc1 {[%clk 00:36:32]}
{[%emt 00:02:23]} Ne5 {[%clk 00:44:42]} {[%emt 00:02:40]} 21. Nb6 {[%clk
00:33:54]} {[%emt 00:02:00]} Rad8 {[%clk 00:43:54]} {[%emt 00:01:10]} 22. Bb2
{[%clk 00:27:05]} {[%emt 00:07:06]} Bf6 {[%clk 00:43:17]} {[%emt 00:00:33]} 23.
R3c2 {[%clk 00:26:28]} {[%emt 00:01:14]} e3 {[%clk 00:42:14]} {[%emt 00:02:23]}
24. Bxe5 {[%clk 00:25:42]} Bxe5 {[%clk 00:40:54]} {[%emt 00:01:52]} 25. Bd3
{[%clk 00:25:11]} f3 {[%clk 00:40:45]} 26. Bxf5 {[%clk 00:24:04]} {[%emt
00:01:45]} Rxf5 {[%clk 00:40:27]} 27. fxe3 {[%clk 00:22:29]} {[%emt 00:01:48]}
dxc5 {[%clk 00:39:05]} {[%emt 00:01:15]} 28. bxc5 {[%clk 00:20:19]} {[%emt
00:03:50]} Bxh2+ {[%clk 00:38:48]} 29. Kf1 {[%clk 00:19:52]} fxg2+ {[%clk
00:37:19]} {[%emt 00:01:20]} 30. Kxg2 {[%clk 00:19:37]} {[%emt 00:00:31]} Qg3+
{[%clk 00:37:23]} 31. Kh1 {[%clk 00:19:36]} {[%emt 00:00:21]} Rdf8 {[%clk
00:36:19]} {[%emt 00:00:55]} 32. Qd3 {[%clk 00:16:54]} {[%emt 00:04:30]} Rh5
{[%clk 00:35:08]} 33. Rg2 {[%clk 00:16:07]} {[%emt 00:00:40]} Qf3 {[%clk
00:34:14]} {[%emt 00:02:08]} 34. Qe2 {[%clk 00:14:44]} {[%emt 00:01:13]} Bf4+
{[%clk 00:34:07]} 35. Kg1 {[%clk 00:13:40]} {[%emt 00:01:27]} Bxe3+ {[%clk
00:34:13]} 0-1

[Event "Kwalificatie NJK B Groningen"]
[Site "Hoogkerk, Netherlands"]
[Date "2023.02.18"]
[Round "4.2"]
[White "Ritzerveld, Noah"]
[Black "Blom, Rens"]
[Result "1-0"]
[TimeControl "55 min. + 10 sec./zet"]
[WhiteElo "1868"]
[BlackElo "1758"]

1. e4 {[%clk 00:55:17]} {[%emt 00:00:02]} d6 {[%clk 00:55:16]} {[%emt
00:00:04]} 2. d4 {[%clk 00:55:23]} {[%emt 00:00:04]} Nf6 {[%clk 00:55:24]}
{[%emt 00:00:03]} 3. Nc3 {[%clk 00:55:28]} {[%emt 00:00:05]} g6 {[%clk
00:55:31]} {[%emt 00:00:03]} 4. Be3 {[%clk 00:55:12]} {[%emt 00:00:27]} Bg7
{[%clk 00:55:21]} {[%emt 00:00:20]} 5. Qd2 {[%clk 00:55:11]} {[%emt 00:00:10]}
O-O {[%clk 00:55:24]} {[%emt 00:00:07]} 6. O-O-O {[%clk 00:54:50]} {[%emt
00:00:30]} c6 {[%clk 00:55:30]} {[%emt 00:00:05]} 7. f3 {[%clk 00:54:08]}
{[%emt 00:00:51]} b5 {[%clk 00:55:17]} {[%emt 00:00:24]} 8. g4 {[%clk
00:53:35]} {[%emt 00:00:42]} Qa5 {[%clk 00:53:01]} {[%emt 00:02:28]} 9. Kb1
{[%clk 00:51:23]} {[%emt 00:02:20]} Be6 {[%clk 00:48:51]} {[%emt 00:04:20]} 10.
Nd5 {[%clk 00:41:49]} {[%emt 00:09:45]} Qxd2 {[%clk 00:47:42]} {[%emt
00:01:18]} 11. Nxf6+ {[%clk 00:41:27]} {[%emt 00:00:32]} Bxf6 {[%clk 00:46:36]}
{[%emt 00:01:17]} 12. Rxd2 {[%clk 00:41:29]} {[%emt 00:00:07]} Na6 {[%clk
00:36:26]} {[%emt 00:10:21]} 13. Ne2 {[%clk 00:36:07]} {[%emt 00:05:31]} Rfc8
{[%clk 00:30:33]} {[%emt 00:06:03]} 14. Nf4 {[%clk 00:34:55]} {[%emt 00:01:21]}
Rab8 {[%clk 00:26:24]} {[%emt 00:04:21]} 15. d5 {[%clk 00:32:41]} {[%emt
00:02:24]} cxd5 {[%clk 00:24:32]} {[%emt 00:02:01]} 16. exd5 {[%clk 00:32:37]}
{[%emt 00:00:14]} Bd7 {[%clk 00:24:28]} {[%emt 00:00:14]} 17. Bxa7 {[%clk
00:32:30]} {[%emt 00:00:17]} Ra8 {[%clk 00:19:09]} {[%emt 00:05:29]} 18. Bd4
{[%clk 00:31:21]} {[%emt 00:01:18]} Bg5 {[%clk 00:18:33]} {[%emt 00:00:47]} 19.
Be3 {[%clk 00:31:17]} {[%emt 00:00:13]} Nb4 {[%clk 00:15:22]} {[%emt 00:03:22]}
20. a3 {[%clk 00:29:32]} {[%emt 00:01:55]} Na6 {[%clk 00:14:57]} {[%emt
00:00:35]} 21. c3 {[%clk 00:26:45]} {[%emt 00:02:57]} Nc5 {[%clk 00:13:43]}
{[%emt 00:01:24]} 22. h4 {[%clk 00:25:17]} {[%emt 00:01:37]} Bh6 {[%clk
00:12:35]} {[%emt 00:01:19]} 23. Re2 {[%clk 00:22:15]} {[%emt 00:03:12]} Bf8
{[%clk 00:06:05]} {[%emt 00:06:40]} 24. Kc2 {[%clk 00:18:22]} {[%emt 00:04:03]}
f5 {[%clk 00:03:34]} {[%emt 00:02:41]} 25. Rg1 {[%clk 00:16:59]} {[%emt
00:01:32]} b4 {[%clk 00:02:34]} {[%emt 00:01:12]} 26. axb4 {[%clk 00:14:08]}
{[%emt 00:03:01]} Na4 {[%clk 00:01:55]} {[%emt 00:00:48]} 27. Bd4 {[%clk
00:13:10]} {[%emt 00:01:08]} fxg4 {[%clk 00:01:36]} {[%emt 00:00:30]} 28. fxg4
{[%clk 00:13:08]} {[%emt 00:00:11]} Bh6 {[%clk 00:01:24]} {[%emt 00:00:23]} 29.
Rxe7 {[%clk 00:12:14]} {[%emt 00:01:04]} Bxf4 {[%clk 00:01:25]} {[%emt
00:00:08]} 30. Rxd7 {[%clk 00:12:15]} {[%emt 00:00:08]} Rab8 {[%clk 00:01:20]}
{[%emt 00:00:16]} 31. Rg7+ {[%clk 00:12:01]} {[%emt 00:00:23]} Kf8 {[%clk
00:01:29]} {[%emt 00:00:02]} 32. Rxh7 {[%clk 00:11:54]} {[%emt 00:00:17]} Be5
{[%clk 00:00:56]} {[%emt 00:00:43]} 33. Bxe5 {[%clk 00:11:32]} {[%emt
00:00:32]} dxe5 {[%clk 00:01:06]} 34. Rh8+ {[%clk 00:10:39]} {[%emt 00:01:03]}
Ke7 {[%clk 00:01:15]} 35. Rxc8 {[%clk 00:10:32]} {[%emt 00:00:17]} Rxc8 {[%clk
00:01:24]} {[%emt 00:00:01]} 36. Bd3 {[%clk 00:09:58]} {[%emt 00:00:44]} Nb6
{[%clk 00:01:16]} {[%emt 00:00:19]} 37. Bxg6 {[%clk 00:09:37]} {[%emt
00:00:30]} Nxd5 {[%clk 00:01:25]} {[%emt 00:00:02]} 38. Kb3 {[%clk 00:08:55]}
{[%emt 00:00:51]} Kf6 {[%clk 00:01:23]} {[%emt 00:00:12]} 39. Be4 {[%clk
00:08:52]} {[%emt 00:00:13]} Ne3 {[%clk 00:01:27]} {[%emt 00:00:06]} 40. g5+
{[%clk 00:08:44]} {[%emt 00:00:19]} Kg7 {[%clk 00:01:34]} {[%emt 00:00:03]} 41.
h5 {[%clk 00:07:59]} {[%emt 00:00:54]} Nc4 {[%clk 00:01:35]} {[%emt 00:00:09]}
42. h6+ {[%clk 00:07:41]} {[%emt 00:00:28]} Kh8 {[%clk 00:01:38]} {[%emt
00:00:07]} 43. Rd1 {[%clk 00:07:24]} {[%emt 00:00:27]} 1-0